[Event "*** Titled Tuesday Blitz"]
[Site "Chess.com"]
[Date "2018.10.02"]
[Round "4"]
[White "xamax2000"]
[Black "Gubajdullin"]
[Result "0-1"]
[WhiteElo "2411"]
[BlackElo "2379"]
[TimeControl "180+2"]
[EndTime "13:49:27 PDT"]
[Termination "Gubajdullin won by checkmate"]

1. e4 {[%clk 0:03:01.9]} 1... g6 {[%clk 0:02:56]} 2. d4 {[%clk 0:03:02.9]} 2...
Bg7 {[%clk 0:02:57]} 3. Nf3 {[%clk 0:03:03.4]} 3... d6 {[%clk 0:02:57.7]} 4. Bc4
{[%clk 0:03:04.6]} 4... e6 {[%clk 0:02:57.7]} 5. Bb3 {[%clk 0:03:04]} 5... Nf6
{[%clk 0:02:55.3]} 6. Nbd2 {[%clk 0:03:02.9]} 6... d5 {[%clk 0:02:52.9]} 7. e5
{[%clk 0:02:56.7]} 7... Nfd7 {[%clk 0:02:53.3]} 8. Nf1 {[%clk 0:02:55.2]} 8...
c5 {[%clk 0:02:52]} 9. c3 {[%clk 0:02:51.8]} 9... Nc6 {[%clk 0:02:52.8]} 10. Ne3
{[%clk 0:02:48.3]} 10... c4 {[%clk 0:02:31.8]} 11. Bc2 {[%clk 0:02:43.1]} 11...
b5 {[%clk 0:02:32.1]} 12. a3 {[%clk 0:02:42.8]} 12... a5 {[%clk 0:02:32.1]} 13.
h4 {[%clk 0:02:38.8]} 13... h6 {[%clk 0:02:32.1]} 14. h5 {[%clk 0:02:36.6]}
14... g5 {[%clk 0:02:32.5]} 15. Ng4 {[%clk 0:02:29.9]} 15... Bb7 {[%clk
0:02:32.1]} 16. Bd2 {[%clk 0:02:25.3]} 16... b4 {[%clk 0:02:31.1]} 17. O-O
{[%clk 0:02:21.4]} 17... Bf8 {[%clk 0:02:08.7]} 18. Ba4 {[%clk 0:01:00.8]} 18...
b3 {[%clk 0:01:59.8]} 19. Nfh2 {[%clk 0:01:00.7]} 19... Be7 {[%clk 0:01:39.7]}
20. f4 {[%clk 0:00:56.1]} 20... gxf4 {[%clk 0:01:39.4]} 21. Bxf4 {[%clk
0:00:58]} 21... Bg5 {[%clk 0:01:40.2]} 22. Qf3 {[%clk 0:00:57.4]} 22... Rh7
{[%clk 0:01:21]} 23. Nxh6 {[%clk 0:00:30]} 23... Rxh6 {[%clk 0:01:09.9]} 24.
Bxg5 {[%clk 0:00:20.6]} 24... Qxg5 {[%clk 0:01:10.4]} 25. Qxf7+ {[%clk
0:00:21.8]} 25... Kd8 {[%clk 0:01:11.5]} 26. Rf6 {[%clk 0:00:21.3]} 26... Rxf6
{[%clk 0:01:02.8]} 27. exf6 {[%clk 0:00:22.3]} 27... Qxf6 {[%clk 0:01:03.7]} 28.
Rf1 {[%clk 0:00:23.8]} 28... Qg5 {[%clk 0:00:25.4]} 29. Qxe6 {[%clk 0:00:21.5]}
29... Kc7 {[%clk 0:00:26]} 30. Rf7 {[%clk 0:00:18.5]} 30... Rd8 {[%clk
0:00:25.8]} 31. Nf3 {[%clk 0:00:18.4]} 31... Qxh5 {[%clk 0:00:24]} 32. Bxc6
{[%clk 0:00:16.4]} 32... Bxc6 {[%clk 0:00:24]} 33. Ne5 {[%clk 0:00:17.9]} 33...
Qd1+ {[%clk 0:00:23.2]} 34. Kf2 {[%clk 0:00:17.9]} 34... Qd2+ {[%clk 0:00:22.3]}
35. Kf3 {[%clk 0:00:19.5]} 35... Qd1+ {[%clk 0:00:18.8]} 36. Kf2 {[%clk
0:00:20.5]} 36... Ba4 {[%clk 0:00:18.5]} 37. Qxd5 {[%clk 0:00:20.6]} 37... Qd2+
{[%clk 0:00:17.9]} 38. Kf3 {[%clk 0:00:21.8]} 38... Qd1+ {[%clk 0:00:18.5]} 39.
Kf4 {[%clk 0:00:23.2]} 39... Qd2+ {[%clk 0:00:19.2]} 40. Kf5 {[%clk 0:00:24.3]}
40... Qf2+ {[%clk 0:00:18.8]} 41. Ke6 {[%clk 0:00:24.3]} 41... Qh4 {[%clk
0:00:16.3]} 42. Qxa5+ {[%clk 0:00:19.5]} 42... Kc8 {[%clk 0:00:16]} 43. Qa8+
{[%clk 0:00:19.7]} 43... Kc7 {[%clk 0:00:16.9]} 44. Qa7+ {[%clk 0:00:20.5]}
44... Kc8 {[%clk 0:00:18.1]} 45. Qa8+ {[%clk 0:00:20.1]} 45... Kc7 {[%clk
0:00:19.2]} 46. Qa5+ {[%clk 0:00:18.2]} 46... Kc8 {[%clk 0:00:19.9]} 47. Qxa4
{[%clk 0:00:19]} 47... Qh6+ {[%clk 0:00:19.6]} 48. Kf5 {[%clk 0:00:20.2]} 48...
Qh5+ {[%clk 0:00:20.3]} 49. Kf4 {[%clk 0:00:21.4]} 49... Qh4+ {[%clk 0:00:20.4]}
50. Ke3 {[%clk 0:00:22]} 50... Qe1+ {[%clk 0:00:21.1]} 51. Kf3 {[%clk
0:00:23.1]} 51... Nxe5+ {[%clk 0:00:19.9]} 52. dxe5 {[%clk 0:00:25]} 52... Qf1+
{[%clk 0:00:20.9]} 53. Ke4 {[%clk 0:00:26.6]} 53... Qxf7 {[%clk 0:00:18.7]} 54.
Qa8+ {[%clk 0:00:28]} 54... Kd7 {[%clk 0:00:18.6]} 55. Qa4+ {[%clk 0:00:28.9]}
55... Ke7 {[%clk 0:00:18.9]} 56. Qb5 {[%clk 0:00:27.2]} 56... Qg6+ {[%clk
0:00:18.4]} 57. Ke3 {[%clk 0:00:25.8]} 57... Qd3+ {[%clk 0:00:18.1]} 58. Kf2
{[%clk 0:00:27]} 58... Rf8+ {[%clk 0:00:18.9]} 59. Kg1 {[%clk 0:00:28.9]} 59...
Qf1+ {[%clk 0:00:18.9]} 60. Kh2 {[%clk 0:00:30.8]} 60... Qf4+ {[%clk 0:00:19.5]}
61. Kg1 {[%clk 0:00:30.9]} 61... Qf2+ {[%clk 0:00:20]} 62. Kh2 {[%clk
0:00:32.3]} 62... Rh8# {[%clk 0:00:21.2]} 0-1

[Event "*** Titled Tuesday Blitz"]
[Site "Chess.com"]
[Date "2018.10.02"]
[Round "4"]
[White "MikeSailer"]
[Black "Saitama_Hero"]
[Result "0-1"]
[WhiteElo "2061"]
[BlackElo "2229"]
[TimeControl "180+2"]
[EndTime "13:49:29 PDT"]
[Termination "Saitama_Hero won by resignation"]

1. c4 {[%clk 0:03:01.9]} 1... Nf6 {[%clk 0:02:59.8]} 2. g3 {[%clk 0:03:02.1]}
2... e6 {[%clk 0:03:00.9]} 3. Bg2 {[%clk 0:03:03.3]} 3... a6 {[%clk 0:03:02.8]}
4. Nf3 {[%clk 0:03:04.1]} 4... b5 {[%clk 0:03:02.8]} 5. b3 {[%clk 0:03:02.1]}
5... Bb7 {[%clk 0:03:02.3]} 6. O-O {[%clk 0:03:02.7]} 6... c5 {[%clk 0:03:03.7]}
7. Bb2 {[%clk 0:03:02.9]} 7... Be7 {[%clk 0:03:03.1]} 8. d3 {[%clk 0:03:00.2]}
8... O-O {[%clk 0:02:59.9]} 9. Nbd2 {[%clk 0:02:51.5]} 9... Nc6 {[%clk 0:02:55]}
10. e4 {[%clk 0:02:32.9]} 10... d6 {[%clk 0:02:35.5]} 11. Re1 {[%clk 0:02:26.3]}
11... Nd7 {[%clk 0:02:35.8]} 12. a4 {[%clk 0:02:12.7]} 12... b4 {[%clk
0:02:31.5]} 13. d4 {[%clk 0:02:03.7]} 13... Bf6 {[%clk 0:02:31.1]} 14. e5 {[%clk
0:01:50]} 14... dxe5 {[%clk 0:02:33]} 15. Nxe5 {[%clk 0:01:50.3]} 15... Qc7
{[%clk 0:02:29.3]} 16. Nxc6 {[%clk 0:01:37.8]} 16... Bxc6 {[%clk 0:02:31.2]} 17.
Bxc6 {[%clk 0:01:38.7]} 17... Qxc6 {[%clk 0:02:32.5]} 18. Ne4 {[%clk 0:01:27.5]}
18... Bxd4 {[%clk 0:02:05]} 19. Bxd4 {[%clk 0:01:26.1]} 19... cxd4 {[%clk
0:02:06.9]} 20. Qxd4 {[%clk 0:01:23.1]} 20... f5 {[%clk 0:01:49.1]} 21. Ng5
{[%clk 0:01:08.6]} 21... Nc5 {[%clk 0:01:48.7]} 22. Qe3 {[%clk 0:00:54.6]} 22...
Rfe8 {[%clk 0:01:46.4]} 23. Nf3 {[%clk 0:00:45.6]} 23... Rad8 {[%clk 0:01:40.8]}
24. Ne5 {[%clk 0:00:46.5]} 24... Qc7 {[%clk 0:01:27]} 25. Rad1 {[%clk
0:00:47.1]} 25... Ne4 {[%clk 0:01:27.9]} 26. Rxd8 {[%clk 0:00:42.4]} 26... Rxd8
{[%clk 0:01:29.8]} 27. Nd3 {[%clk 0:00:38]} 27... a5 {[%clk 0:01:30.9]} 28. f3
{[%clk 0:00:39.2]} 28... Qd6 {[%clk 0:00:46.8]} 29. Nxb4 {[%clk 0:00:39.9]}
29... Ng5 {[%clk 0:00:32]} 30. Nc2 {[%clk 0:00:29.3]} 30... Qd2 {[%clk
0:00:30.8]} 31. Qxd2 {[%clk 0:00:15.5]} 31... Nxf3+ {[%clk 0:00:32]} 32. Kf2
{[%clk 0:00:14.1]} 32... Nxd2 {[%clk 0:00:33.3]} 33. Rxe6 {[%clk 0:00:11.9]}
33... Nxb3 {[%clk 0:00:31.7]} 34. Ne3 {[%clk 0:00:12.7]} 34... Rd2+ {[%clk
0:00:31.1]} 35. Ke1 {[%clk 0:00:11.9]} 35... Rxh2 {[%clk 0:00:19.2]} 36. Nxf5
{[%clk 0:00:13.2]} 36... g6 {[%clk 0:00:15.9]} 37. Nd6 {[%clk 0:00:14.4]} 37...
Nd4 {[%clk 0:00:15.6]} 38. Re8+ {[%clk 0:00:14.2]} 38... Kg7 {[%clk 0:00:16.9]}
39. c5 {[%clk 0:00:15.3]} 39... Rc2 {[%clk 0:00:16.3]} 40. Nb7 {[%clk
0:00:14.9]} 40... Kf7 {[%clk 0:00:09.8]} 41. Re4 {[%clk 0:00:15.5]} 41... Ne6
{[%clk 0:00:10.2]} 42. Nxa5 {[%clk 0:00:14.2]} 42... Nxc5 {[%clk 0:00:08.4]} 43.
Rc4 {[%clk 0:00:13.1]} 43... Nd3+ {[%clk 0:00:05.9]} 44. Kd1 {[%clk 0:00:12]}
44... Ra2 {[%clk 0:00:07.1]} 45. Nb3 {[%clk 0:00:08.6]} 45... Nb2+ {[%clk
0:00:06]} 46. Kc2 {[%clk 0:00:07.4]} 46... Nxc4+ {[%clk 0:00:07.9]} 47. Kc3
{[%clk 0:00:09]} 47... Nd6 {[%clk 0:00:08]} 48. a5 {[%clk 0:00:09.7]} 48... Rg2
{[%clk 0:00:07.9]} 49. Kd4 {[%clk 0:00:10.2]} 49... Rxg3 {[%clk 0:00:09.3]} 50.
Nc5 {[%clk 0:00:11.5]} 50... Ra3 {[%clk 0:00:10.5]} 51. a6 {[%clk 0:00:12.3]}
51... h5 {[%clk 0:00:08.2]} 52. Kd5 {[%clk 0:00:13.6]} 52... Ke7 {[%clk
0:00:09.4]} 53. Kc6 {[%clk 0:00:13.1]} 53... h4 {[%clk 0:00:10]} 54. Kb6 {[%clk
0:00:13.9]} 54... h3 {[%clk 0:00:11.3]} 55. Ne4 {[%clk 0:00:12.3]} 55... Nxe4
{[%clk 0:00:10.4]} 0-1

[Event "*** Titled Tuesday Blitz"]
[Site "Chess.com"]
[Date "2018.10.02"]
[Round "4"]
[White "GCamachoMartinez"]
[Black "nOcHeaTiNgKiD"]
[Result "0-1"]
[WhiteElo "2275"]
[BlackElo "2441"]
[TimeControl "180+2"]
[EndTime "13:49:38 PDT"]
[Termination "nOcHeaTiNgKiD won by resignation"]

1. d4 {[%clk 0:03:01.9]} 1... Nf6 {[%clk 0:03:00.2]} 2. c4 {[%clk 0:03:02.1]}
2... c5 {[%clk 0:03:00.4]} 3. Nf3 {[%clk 0:03:02.1]} 3... cxd4 {[%clk
0:02:57.8]} 4. Nxd4 {[%clk 0:03:02.6]} 4... e6 {[%clk 0:02:57.7]} 5. g3 {[%clk
0:03:00.4]} 5... d5 {[%clk 0:02:53.5]} 6. Bg2 {[%clk 0:03:01.2]} 6... e5 {[%clk
0:02:50.4]} 7. Nf3 {[%clk 0:03:02]} 7... d4 {[%clk 0:02:50.1]} 8. O-O {[%clk
0:03:02.1]} 8... Nc6 {[%clk 0:02:49.3]} 9. e3 {[%clk 0:03:02.8]} 9... Be7 {[%clk
0:02:42.4]} 10. exd4 {[%clk 0:03:03.5]} 10... exd4 {[%clk 0:02:42.4]} 11. Bf4
{[%clk 0:03:05]} 11... O-O {[%clk 0:02:42.3]} 12. Ne5 {[%clk 0:02:48.9]} 12...
Nxe5 {[%clk 0:02:04.3]} 13. Bxe5 {[%clk 0:02:48.7]} 13... Bc5 {[%clk 0:02:04.3]}
14. Nd2 {[%clk 0:02:46.1]} 14... Re8 {[%clk 0:02:00.5]} 15. Re1 {[%clk 0:02:39]}
15... Ng4 {[%clk 0:01:52.4]} 16. Bf4 {[%clk 0:02:26.9]} 16... d3 {[%clk
0:01:42.5]} 17. Rxe8+ {[%clk 0:02:22.9]} 17... Qxe8 {[%clk 0:01:43.1]} 18. Ne4
{[%clk 0:02:24.3]} 18... Bd4 {[%clk 0:01:34]} 19. Qxd3 {[%clk 0:02:15.9]} 19...
Bxb2 {[%clk 0:01:33.1]} 20. Rb1 {[%clk 0:02:15.9]} 20... Be5 {[%clk 0:01:20.8]}
21. Ng5 {[%clk 0:01:39.4]} 21... g6 {[%clk 0:01:06.2]} 22. Bd5 {[%clk
0:01:34.8]} 22... Be6 {[%clk 0:00:58]} 23. Rxb7 {[%clk 0:01:16.8]} 23... Bxf4
{[%clk 0:00:55.8]} 24. gxf4 {[%clk 0:01:17]} 24... Bxd5 {[%clk 0:00:56]} 25.
cxd5 {[%clk 0:01:08.3]} 25... Qe1+ {[%clk 0:00:29.1]} 26. Qf1 {[%clk 0:01:08.8]}
26... Qd2 {[%clk 0:00:30.2]} 27. Nh3 {[%clk 0:00:16.1]} 27... Re8 {[%clk
0:00:25.6]} 28. Rb1 {[%clk 0:00:12.5]} 28... Qxd5 {[%clk 0:00:19.5]} 29. Qg2
{[%clk 0:00:10.9]} 29... Qf5 {[%clk 0:00:20.4]} 30. Rf1 {[%clk 0:00:09.9]} 30...
h6 {[%clk 0:00:18.3]} 31. Qg3 {[%clk 0:00:10.5]} 31... Re2 {[%clk 0:00:16.6]}
32. f3 {[%clk 0:00:07.3]} 32... Ne3 {[%clk 0:00:15.9]} 33. Re1 {[%clk
0:00:07.8]} 33... Rg2+ {[%clk 0:00:16.3]} 34. Qxg2 {[%clk 0:00:08.9]} 34... Nxg2
{[%clk 0:00:18.2]} 35. Kxg2 {[%clk 0:00:10.5]} 35... Qc2+ {[%clk 0:00:18.2]} 36.
Kg3 {[%clk 0:00:11.5]} 36... Qxa2 {[%clk 0:00:19.1]} 37. Re8+ {[%clk 0:00:12.1]}
37... Kg7 {[%clk 0:00:20.1]} 38. Re7 {[%clk 0:00:13.2]} 38... a5 {[%clk
0:00:18.1]} 39. Ra7 {[%clk 0:00:13.3]} 39... a4 {[%clk 0:00:19.2]} 40. f5 {[%clk
0:00:14.4]} 40... a3 {[%clk 0:00:18.9]} 41. fxg6 {[%clk 0:00:13.1]} 41... Kxg6
{[%clk 0:00:19]} 42. Nf4+ {[%clk 0:00:14.6]} 42... Kg7 {[%clk 0:00:19.8]} 43.
Nh5+ {[%clk 0:00:14.4]} 43... Kf8 {[%clk 0:00:19.3]} 44. Nf6 {[%clk 0:00:13]}
44... Qe6 {[%clk 0:00:15.3]} 45. Nd7+ {[%clk 0:00:13]} 45... Kg7 {[%clk
0:00:13.7]} 46. f4 {[%clk 0:00:12.9]} 46... a2 {[%clk 0:00:12.3]} 47. Ne5 {[%clk
0:00:13.6]} 47... Qb3+ {[%clk 0:00:12.4]} 48. Kg4 {[%clk 0:00:13.5]} 48... Qe6+
{[%clk 0:00:12.6]} 49. Kg3 {[%clk 0:00:13.6]} 49... h5 {[%clk 0:00:13.1]} 50. h3
{[%clk 0:00:13.5]} 50... h4+ {[%clk 0:00:09.6]} 51. Kxh4 {[%clk 0:00:11.5]}
51... Qf6+ {[%clk 0:00:10.1]} 52. Kg4 {[%clk 0:00:12.3]} 52... Qe6+ {[%clk
0:00:10.8]} 53. Kh4 {[%clk 0:00:11.6]} 53... Kf6 {[%clk 0:00:06.9]} 54. Kg3
{[%clk 0:00:11.8]} 54... Kg7 {[%clk 0:00:06.7]} 55. h4 {[%clk 0:00:12.6]} 55...
Qb3+ {[%clk 0:00:07.7]} 56. Kg4 {[%clk 0:00:12.7]} 56... Qb1 {[%clk 0:00:09]}
57. Rxf7+ {[%clk 0:00:11.2]} 57... Kg8 {[%clk 0:00:10.4]} 58. Ra7 {[%clk
0:00:05]} 58... a1=Q {[%clk 0:00:11.7]} 0-1

[Event "*** Titled Tuesday Blitz"]
[Site "Chess.com"]
[Date "2018.10.02"]
[Round "4"]
[White "farzadbfd"]
[Black "TastyFrenchFries"]
[Result "0-1"]
[WhiteElo "2544"]
[BlackElo "2419"]
[TimeControl "180+2"]
[EndTime "13:49:39 PDT"]
[Termination "TastyFrenchFries won by resignation"]

1. e4 {[%clk 0:03:01.9]} 1... e6 {[%clk 0:02:59.8]} 2. d3 {[%clk 0:03:02.8]}
2... d5 {[%clk 0:03:00.4]} 3. Nd2 {[%clk 0:03:04.5]} 3... c5 {[%clk 0:03:01.4]}
4. Ngf3 {[%clk 0:03:05.8]} 4... Nc6 {[%clk 0:03:02.6]} 5. g3 {[%clk 0:03:07.3]}
5... Bd6 {[%clk 0:03:03.5]} 6. Bg2 {[%clk 0:03:07.6]} 6... Nge7 {[%clk
0:03:03.1]} 7. O-O {[%clk 0:03:09.1]} 7... O-O {[%clk 0:03:01]} 8. Re1 {[%clk
0:03:10.2]} 8... Bc7 {[%clk 0:02:59]} 9. b3 {[%clk 0:03:00.7]} 9... a5 {[%clk
0:02:47.7]} 10. a4 {[%clk 0:03:00.1]} 10... b6 {[%clk 0:02:47.3]} 11. Bb2 {[%clk
0:02:58.7]} 11... d4 {[%clk 0:02:38.1]} 12. Bc1 {[%clk 0:02:54.5]} 12... f5
{[%clk 0:02:34.4]} 13. exf5 {[%clk 0:02:52.9]} 13... exf5 {[%clk 0:02:32.6]} 14.
Nc4 {[%clk 0:02:50.7]} 14... Rb8 {[%clk 0:02:29.3]} 15. Ng5 {[%clk 0:02:27.8]}
15... h6 {[%clk 0:02:07.3]} 16. Ne6 {[%clk 0:02:26.9]} 16... Bxe6 {[%clk
0:02:06.3]} 17. Rxe6 {[%clk 0:02:28.8]} 17... Qd7 {[%clk 0:02:06.1]} 18. Qe2
{[%clk 0:02:17.2]} 18... Rbe8 {[%clk 0:02:05.2]} 19. Bxh6 {[%clk 0:02:10.6]}
19... Nd8 {[%clk 0:01:22.8]} 20. Bxg7 {[%clk 0:00:54.7]} 20... Kxg7 {[%clk
0:01:24.7]} 21. Rxb6 {[%clk 0:00:47.4]} 21... Nd5 {[%clk 0:01:15.5]} 22. Qh5
{[%clk 0:00:37.5]} 22... Nxb6 {[%clk 0:01:14.5]} 23. Nxb6 {[%clk 0:00:36.7]}
23... Bxb6 {[%clk 0:01:16.4]} 24. Qg5+ {[%clk 0:00:38]} 24... Kf7 {[%clk
0:01:12.8]} 25. Bf3 {[%clk 0:00:31.3]} 25... Re5 {[%clk 0:01:00.7]} 26. Bh5+
{[%clk 0:00:15.5]} 26... Ke6 {[%clk 0:00:59.9]} 27. f4 {[%clk 0:00:10.8]} 27...
Re3 {[%clk 0:00:58.9]} 28. g4 {[%clk 0:00:08.9]} 28... Kd6 {[%clk 0:00:57.2]}
29. Qh6+ {[%clk 0:00:10.2]} 29... Kc7 {[%clk 0:00:57.3]} 30. Qxf8 {[%clk
0:00:11.2]} 30... fxg4 {[%clk 0:00:41.1]} 31. f5 {[%clk 0:00:09.7]} 31... c4
{[%clk 0:00:32.2]} 32. bxc4 {[%clk 0:00:09.6]} 32... g3 {[%clk 0:00:31.4]} 33.
hxg3 {[%clk 0:00:08.9]} 33... Rxg3+ {[%clk 0:00:26.4]} 34. Kf2 {[%clk
0:00:10.2]} 34... Rg5 {[%clk 0:00:26.2]} 35. Bg6 {[%clk 0:00:09.6]} 35... Qd6
{[%clk 0:00:26.3]} 36. Qxd6+ {[%clk 0:00:08]} 36... Kxd6 {[%clk 0:00:28.2]} 37.
Rb1 {[%clk 0:00:09.3]} 37... Bc5 {[%clk 0:00:25.1]} 38. Kf3 {[%clk 0:00:10.8]}
38... Bb4 {[%clk 0:00:24.3]} 39. Ke4 {[%clk 0:00:12.1]} 39... Nc6 {[%clk
0:00:24]} 40. Rh1 {[%clk 0:00:13.1]} 40... Rg4+ {[%clk 0:00:23.3]} 41. Kf3
{[%clk 0:00:14.7]} 41... Ne5+ {[%clk 0:00:23.7]} 42. Kf2 {[%clk 0:00:16.1]}
42... Nxg6 {[%clk 0:00:22.8]} 43. Rh6 {[%clk 0:00:17.7]} 43... Rf4+ {[%clk
0:00:20.5]} 44. Ke2 {[%clk 0:00:16.5]} 44... Rxf5 {[%clk 0:00:20.6]} 45. Rxg6+
{[%clk 0:00:18.1]} 45... Kc5 {[%clk 0:00:21]} 46. Re6 {[%clk 0:00:19]} 46... Bc3
{[%clk 0:00:20]} 47. Re8 {[%clk 0:00:05.9]} 47... Kb4 {[%clk 0:00:19.7]} 48.
Rb8+ {[%clk 0:00:07.3]} 48... Kxa4 {[%clk 0:00:19.6]} 49. Rb6 {[%clk 0:00:08.8]}
49... Rg5 {[%clk 0:00:17.7]} 50. Kf3 {[%clk 0:00:10]} 50... Re5 {[%clk
0:00:16.7]} 51. Kf4 {[%clk 0:00:11]} 51... Re2 {[%clk 0:00:16]} 52. c5 {[%clk
0:00:12.6]} 52... Rxc2 {[%clk 0:00:16]} 53. Ke4 {[%clk 0:00:14.3]} 53... Re2+
{[%clk 0:00:14.9]} 54. Kd5 {[%clk 0:00:15.3]} 54... Bb4 {[%clk 0:00:14.8]} 55.
c6 {[%clk 0:00:15.6]} 55... Rc2 {[%clk 0:00:14.5]} 56. Rb7 {[%clk 0:00:08.5]}
56... Kb3 {[%clk 0:00:14]} 57. c7 {[%clk 0:00:09.5]} 57... a4 {[%clk 0:00:13.3]}
58. Kxd4 {[%clk 0:00:10.9]} 58... a3 {[%clk 0:00:13.6]} 59. Ra7 {[%clk
0:00:11.5]} 59... Bc5+ {[%clk 0:00:12.7]} 0-1

[Event "*** Titled Tuesday Blitz"]
[Site "Chess.com"]
[Date "2018.10.02"]
[Round "4"]
[White "jncool68"]
[Black "Shant_Sargsyan"]
[Result "1/2-1/2"]
[WhiteElo "2696"]
[BlackElo "2904"]
[TimeControl "180+2"]
[EndTime "13:49:56 PDT"]
[Termination "Game drawn by stalemate"]

1. e4 {[%clk 0:03:01.9]} 1... e5 {[%clk 0:02:54.6]} 2. Nf3 {[%clk 0:03:02.8]}
2... Nc6 {[%clk 0:02:56.1]} 3. Bb5 {[%clk 0:03:03.8]} 3... a6 {[%clk 0:02:57.1]}
4. Ba4 {[%clk 0:03:04.5]} 4... Nf6 {[%clk 0:02:58.6]} 5. O-O {[%clk 0:03:05.6]}
5... Nxe4 {[%clk 0:03:00.1]} 6. d4 {[%clk 0:03:01]} 6... b5 {[%clk 0:03:01.3]}
7. Bb3 {[%clk 0:03:01.9]} 7... d5 {[%clk 0:03:00.9]} 8. dxe5 {[%clk 0:03:02.2]}
8... Be6 {[%clk 0:03:02.4]} 9. Be3 {[%clk 0:03:02.2]} 9... Be7 {[%clk
0:03:02.5]} 10. c3 {[%clk 0:03:03.3]} 10... O-O {[%clk 0:03:03.7]} 11. Nbd2
{[%clk 0:03:02.5]} 11... Bg4 {[%clk 0:03:04.7]} 12. Nxe4 {[%clk 0:02:47.5]}
12... dxe4 {[%clk 0:03:06.6]} 13. Qd5 {[%clk 0:02:42]} 13... Qxd5 {[%clk
0:03:06.8]} 14. Bxd5 {[%clk 0:02:42.3]} 14... exf3 {[%clk 0:03:08.7]} 15. Bxc6
{[%clk 0:02:42.9]} 15... fxg2 {[%clk 0:03:10.6]} 16. Rfe1 {[%clk 0:02:35.8]}
16... Rad8 {[%clk 0:03:10.7]} 17. a4 {[%clk 0:02:30.2]} 17... b4 {[%clk
0:03:11.4]} 18. Bxg2 {[%clk 0:02:18.3]} 18... Be6 {[%clk 0:02:40.8]} 19. cxb4
{[%clk 0:02:17.8]} 19... Bxb4 {[%clk 0:02:42.7]} 20. Rec1 {[%clk 0:02:19]} 20...
Bd2 {[%clk 0:02:38]} 21. Bxd2 {[%clk 0:02:18]} 21... Rxd2 {[%clk 0:02:39.9]} 22.
Rxc7 {[%clk 0:02:18.8]} 22... Rxb2 {[%clk 0:02:40.5]} 23. Rc6 {[%clk 0:02:18.7]}
23... a5 {[%clk 0:02:35.6]} 24. Rc5 {[%clk 0:02:18.7]} 24... Rfb8 {[%clk
0:02:19.4]} 25. h3 {[%clk 0:01:26.8]} 25... g5 {[%clk 0:02:12.4]} 26. Rxa5
{[%clk 0:01:27.2]} 26... h5 {[%clk 0:01:59.3]} 27. Ra8 {[%clk 0:01:24.3]} 27...
Rxa8 {[%clk 0:01:25.1]} 28. Bxa8 {[%clk 0:01:24.1]} 28... Bxh3 {[%clk
0:01:24.4]} 29. a5 {[%clk 0:01:25.2]} 29... Rb8 {[%clk 0:01:13.7]} 30. Bc6
{[%clk 0:01:19.5]} 30... Rc8 {[%clk 0:01:06.2]} 31. Bb7 {[%clk 0:01:18.1]} 31...
Rc7 {[%clk 0:01:02.5]} 32. a6 {[%clk 0:01:18.8]} 32... Bc8 {[%clk 0:01:03.8]}
33. Rb1 {[%clk 0:01:18.7]} 33... Kg7 {[%clk 0:00:58.6]} 34. Rb6 {[%clk 0:01:05]}
34... h4 {[%clk 0:00:48]} 35. Kh2 {[%clk 0:01:01.1]} 35... Rc2 {[%clk 0:00:36]}
36. Bxc8 {[%clk 0:00:50.7]} 36... Rxc8 {[%clk 0:00:36.2]} 37. a7 {[%clk
0:00:50.3]} 37... Ra8 {[%clk 0:00:35.8]} 38. Ra6 {[%clk 0:00:48.4]} 38... g4
{[%clk 0:00:37.2]} 39. Kg2 {[%clk 0:00:49.3]} 39... Kf8 {[%clk 0:00:36.1]} 40.
f3 {[%clk 0:00:50.1]} 40... h3+ {[%clk 0:00:27.5]} 41. Kg3 {[%clk 0:00:48.8]}
41... gxf3 {[%clk 0:00:29]} 42. Kxf3 {[%clk 0:00:50.1]} 42... Ke7 {[%clk
0:00:23.8]} 43. Kg3 {[%clk 0:00:51.2]} 43... Kd7 {[%clk 0:00:24.9]} 44. Kxh3
{[%clk 0:00:52.7]} 44... Kc7 {[%clk 0:00:26.3]} 45. Rf6 {[%clk 0:00:53.1]} 45...
Kd7 {[%clk 0:00:24.6]} 46. Ra6 {[%clk 0:00:51.7]} 46... Kc7 {[%clk 0:00:25.6]}
47. Kg4 {[%clk 0:00:53.3]} 47... Kb7 {[%clk 0:00:27]} 48. Rf6 {[%clk 0:00:54.5]}
48... Rg8+ {[%clk 0:00:25.8]} 49. Kf5 {[%clk 0:00:55.4]} 49... Rg7 {[%clk
0:00:27]} 50. Ra6 {[%clk 0:00:51.3]} 50... Ka8 {[%clk 0:00:28.4]} 51. Rh6 {[%clk
0:00:42.4]} 51... Rg1 {[%clk 0:00:21.2]} 52. Ra6 {[%clk 0:00:38]} 52... Rg7
{[%clk 0:00:21.5]} 53. Ra5 {[%clk 0:00:38.4]} 53... Rg6 {[%clk 0:00:21.2]} 54.
Rd5 {[%clk 0:00:38]} 54... Rg1 {[%clk 0:00:15.8]} 55. Rd7 {[%clk 0:00:34.2]}
55... Rf1+ {[%clk 0:00:15]} 56. Kg5 {[%clk 0:00:33.8]} 56... Rg1+ {[%clk
0:00:16.4]} 57. Kf6 {[%clk 0:00:34.6]} 57... Rf1+ {[%clk 0:00:17.7]} 58. Kg7
{[%clk 0:00:35.6]} 58... Rf5 {[%clk 0:00:17.2]} 59. Re7 {[%clk 0:00:36.2]} 59...
Rh5 {[%clk 0:00:08.7]} 60. Kxf7 {[%clk 0:00:36.6]} 60... Rf5+ {[%clk 0:00:06.8]}
61. Kg6 {[%clk 0:00:33.7]} 61... Rf6+ {[%clk 0:00:07.4]} 62. Kg7 {[%clk
0:00:15.5]} 62... Rf7+ {[%clk 0:00:08.3]} 63. Kxf7 {[%clk 0:00:16.4]} 1/2-1/2